[Event "Early-Titled-Tuesday-Blitz-August-29-2023"]
[Site "Chess.com"]
[Date "2023.08.29"]
[Round "1"]
[White "VerdeNotte"]
[Black "DawidCzerw"]
[Result "1-0"]
[WhiteElo "2901"]
[BlackElo "2476"]
[TimeControl "180+1"]
[EndTime "8:08:10 PDT"]
[Termination "VerdeNotte won by resignation"]

1. Nf3 {[%clk 0:03:00.9]} 1... c5 {[%clk 0:02:57.6]} 2. e4 {[%clk 0:02:57.8]}
2... Nc6 {[%clk 0:02:56.4]} 3. c3 {[%clk 0:02:55.9]} 3... Nf6 {[%clk 0:02:53.2]}
4. e5 {[%clk 0:02:56.5]} 4... Nd5 {[%clk 0:02:53.1]} 5. Bc4 {[%clk 0:02:57.1]}
5... Nb6 {[%clk 0:02:52.8]} 6. Bb3 {[%clk 0:02:57.8]} 6... d5 {[%clk 0:02:52.4]}
7. exd6 {[%clk 0:02:58.4]} 7... Qxd6 {[%clk 0:02:52.3]} 8. O-O {[%clk
0:02:58.9]} 8... Bf5 {[%clk 0:02:49.8]} 9. d4 {[%clk 0:02:59]} 9... cxd4 {[%clk
0:02:48.8]} 10. Nxd4 {[%clk 0:02:58.5]} 10... Nxd4 {[%clk 0:02:48.2]} 11. cxd4
{[%clk 0:02:59.2]} 11... e6 {[%clk 0:02:47.2]} 12. a4 {[%clk 0:02:54.2]} 12...
Be7 {[%clk 0:02:34.6]} 13. a5 {[%clk 0:02:54.1]} 13... Nd5 {[%clk 0:02:33.3]}
14. Nc3 {[%clk 0:02:50.7]} 14... O-O {[%clk 0:02:24.9]} 15. Qf3 {[%clk
0:02:44.1]} 15... Nxc3 {[%clk 0:01:47.7]} 16. bxc3 {[%clk 0:02:44]} 16... Rac8
{[%clk 0:01:34.1]} 17. d5 {[%clk 0:02:23.7]} 17... Qc7 {[%clk 0:01:22.2]} 18.
dxe6 {[%clk 0:02:18.5]} 18... Bxe6 {[%clk 0:01:19.7]} 19. Bxe6 {[%clk
0:02:14.2]} 19... fxe6 {[%clk 0:01:20.6]} 20. Qe3 {[%clk 0:02:05.8]} 20... Qc6
{[%clk 0:01:10]} 21. Ba3 {[%clk 0:01:56.6]} 21... Bxa3 {[%clk 0:01:00.1]} 22.
Rxa3 {[%clk 0:01:57.5]} 22... b6 {[%clk 0:00:50.3]} 23. axb6 {[%clk 0:01:50]}
23... axb6 {[%clk 0:00:49.8]} 24. Re1 {[%clk 0:01:49.4]} 24... Rf6 {[%clk
0:00:34.7]} 25. Rb3 {[%clk 0:01:47.8]} 25... b5 {[%clk 0:00:34.2]} 26. Reb1
{[%clk 0:01:41]} 26... h6 {[%clk 0:00:32.7]} 27. Rxb5 {[%clk 0:01:35.7]} 27...
Qxc3 {[%clk 0:00:31.8]} 28. Rb8 {[%clk 0:01:36.3]} 28... Qc7 {[%clk 0:00:22.7]}
29. Qg3 {[%clk 0:01:27.6]} 29... Rff8 {[%clk 0:00:02.3]} 30. Rxc8 {[%clk
0:01:13.7]} 30... Qxc8 {[%clk 0:00:02.5]} 31. h4 {[%clk 0:01:09.7]} 31... Qd7
{[%clk 0:00:02.9]} 32. Qe3 {[%clk 0:00:46.7]} 32... Qf7 {[%clk 0:00:02.8]} 33.
Rb6 {[%clk 0:00:43.9]} 33... Re8 {[%clk 0:00:01.7]} 34. Qb3 {[%clk 0:00:42.3]}
34... Kh8 {[%clk 0:00:02.2]} 35. g3 {[%clk 0:00:41.9]} 35... Qf6 {[%clk
0:00:02.7]} 36. Kg2 {[%clk 0:00:40.1]} 36... Rf8 {[%clk 0:00:03.3]} 37. Qe3
{[%clk 0:00:39.2]} 37... Qf7 {[%clk 0:00:02.5]} 38. Rxe6 {[%clk 0:00:38.4]}
38... Qb7+ {[%clk 0:00:02.7]} 39. Kh2 {[%clk 0:00:37.9]} 39... Qf7 {[%clk
0:00:03]} 40. Kg1 {[%clk 0:00:35.7]} 40... Rd8 {[%clk 0:00:03.2]} 41. Qe4 {[%clk
0:00:30.9]} 41... Rd1+ {[%clk 0:00:02.8]} 42. Kg2 {[%clk 0:00:31.1]} 42... Rd8
{[%clk 0:00:03.5]} 43. g4 {[%clk 0:00:28.5]} 43... Rf8 {[%clk 0:00:03.1]} 44. f3
{[%clk 0:00:27.8]} 44... Qd7 {[%clk 0:00:02.9]} 45. h5 {[%clk 0:00:25.7]} 45...
Qd2+ {[%clk 0:00:02.8]} 46. Kg3 {[%clk 0:00:25.1]} 46... Qd7 {[%clk 0:00:03.3]}
47. Re7 {[%clk 0:00:23.6]} 47... Qd6+ {[%clk 0:00:03.6]} 48. Kh3 {[%clk
0:00:23.2]} 48... Qf6 {[%clk 0:00:03.5]} 49. Re8 {[%clk 0:00:21.1]} 49... Rxe8
{[%clk 0:00:02.7]} 50. Qxe8+ {[%clk 0:00:22]} 50... Kh7 {[%clk 0:00:03.3]} 51.
Qe4+ {[%clk 0:00:20.6]} 51... Kg8 {[%clk 0:00:03.5]} 52. Qd5+ {[%clk 0:00:20]}
52... Kh7 {[%clk 0:00:03.6]} 53. Kg3 {[%clk 0:00:20.7]} 53... Qf8 {[%clk
0:00:03.1]} 54. Qf5+ {[%clk 0:00:19.7]} 54... Qxf5 {[%clk 0:00:03]} 55. gxf5
{[%clk 0:00:20.6]} 55... Kg8 {[%clk 0:00:03.5]} 56. Kf4 {[%clk 0:00:21.2]} 56...
Kf7 {[%clk 0:00:04.4]} 57. Ke5 {[%clk 0:00:19.5]} 57... Ke7 {[%clk 0:00:04.6]}
58. f6+ {[%clk 0:00:20.1]} 58... gxf6+ {[%clk 0:00:04.4]} 59. Kf5 {[%clk
0:00:20.8]} 59... Kf7 {[%clk 0:00:05.3]} 60. f4 {[%clk 0:00:21]} 60... Kg7
{[%clk 0:00:05.8]} 61. Ke6 {[%clk 0:00:21.4]} 61... f5 {[%clk 0:00:06.4]} 62.
Ke5 {[%clk 0:00:20]} 62... Kf7 {[%clk 0:00:07.3]} 63. Kxf5 {[%clk 0:00:20.6]}
63... Kg7 {[%clk 0:00:07.6]} 64. Ke6 {[%clk 0:00:21.1]} 64... Kf8 {[%clk
0:00:07.5]} 65. Kf6 {[%clk 0:00:21.5]} 65... Ke8 {[%clk 0:00:08.4]} 66. Kg7
{[%clk 0:00:21.3]} 66... Ke7 {[%clk 0:00:08.9]} 67. f5 {[%clk 0:00:22.2]} 67...
Kd6 {[%clk 0:00:09.2]} 68. f6 {[%clk 0:00:23.1]} 68... Ke5 {[%clk 0:00:09.8]}
69. f7 {[%clk 0:00:24]} 69... Kf5 {[%clk 0:00:10.3]} 70. f8=Q+ {[%clk
0:00:24.9]} 70... Kg5 {[%clk 0:00:11.1]} 71. Qf6+ {[%clk 0:00:24.7]} 1-0

[Event "Early-Titled-Tuesday-Blitz-August-29-2023"]
[Site "Chess.com"]
[Date "2023.08.29"]
[Round "1"]
[White "ATM622"]
[Black "OparinGrigoriy"]
[Result "0-1"]
[WhiteElo "2510"]
[BlackElo "2975"]
[TimeControl "180+1"]
[EndTime "8:08:14 PDT"]
[Termination "OparinGrigoriy won by resignation"]

1. d4 {[%clk 0:03:00.9]} 1... Nf6 {[%clk 0:02:59.8]} 2. c4 {[%clk 0:03:00.7]}
2... e6 {[%clk 0:03:00.3]} 3. g3 {[%clk 0:03:00]} 3... c5 {[%clk 0:02:59.6]} 4.
d5 {[%clk 0:02:59.6]} 4... exd5 {[%clk 0:03:00.5]} 5. cxd5 {[%clk 0:02:59.2]}
5... d6 {[%clk 0:03:01.2]} 6. Bg2 {[%clk 0:02:58.7]} 6... g6 {[%clk 0:03:01.9]}
7. Nc3 {[%clk 0:02:31.6]} 7... Bg7 {[%clk 0:03:01.9]} 8. Nf3 {[%clk 0:02:31.9]}
8... O-O {[%clk 0:03:02.5]} 9. O-O {[%clk 0:02:32.3]} 9... Re8 {[%clk
0:03:03.4]} 10. Nd2 {[%clk 0:02:32.2]} 10... a6 {[%clk 0:03:02]} 11. a4 {[%clk
0:02:31.9]} 11... Nbd7 {[%clk 0:02:52.7]} 12. Nc4 {[%clk 0:02:31.1]} 12... Ne5
{[%clk 0:02:49]} 13. Nxe5 {[%clk 0:02:30.8]} 13... Rxe5 {[%clk 0:02:49.9]} 14.
e4 {[%clk 0:02:31.2]} 14... Rb8 {[%clk 0:02:39.3]} 15. f4 {[%clk 0:02:24.8]}
15... Re8 {[%clk 0:02:39.3]} 16. Re1 {[%clk 0:02:24.9]} 16... b5 {[%clk
0:02:36.9]} 17. axb5 {[%clk 0:02:21.6]} 17... axb5 {[%clk 0:02:37.8]} 18. e5
{[%clk 0:02:21.5]} 18... dxe5 {[%clk 0:02:34.3]} 19. fxe5 {[%clk 0:02:21.1]}
19... Ng4 {[%clk 0:02:34.9]} 20. Bf4 {[%clk 0:01:41.6]} 20... Bxe5 {[%clk
0:02:29.2]} 21. Bxe5 {[%clk 0:01:29.8]} 21... Nxe5 {[%clk 0:02:27]} 22. d6
{[%clk 0:01:26.7]} 22... c4 {[%clk 0:02:23.9]} 23. Kh1 {[%clk 0:01:13]} 23...
Nd3 {[%clk 0:02:19.8]} 24. Rxe8+ {[%clk 0:01:07.2]} 24... Qxe8 {[%clk
0:02:20.7]} 25. Qf1 {[%clk 0:01:06.1]} 25... Qe5 {[%clk 0:02:13.8]} 26. Nd5
{[%clk 0:00:59.9]} 26... Qxd6 {[%clk 0:02:04.7]} 27. Ra7 {[%clk 0:00:46]} 27...
Bf5 {[%clk 0:01:36.9]} 28. g4 {[%clk 0:00:28.5]} 28... Re8 {[%clk 0:00:46.8]}
29. Ra1 {[%clk 0:00:19.1]} 29... Qc5 {[%clk 0:00:29.1]} 30. Nf6+ {[%clk
0:00:18.8]} 30... Kf8 {[%clk 0:00:28.6]} 31. gxf5 {[%clk 0:00:12]} 31... Nf2+
{[%clk 0:00:28.5]} 32. Kg1 {[%clk 0:00:12.4]} 32... Ng4+ {[%clk 0:00:25.8]} 33.
Kh1 {[%clk 0:00:12.6]} 33... Nf2+ {[%clk 0:00:25.4]} 34. Kg1 {[%clk 0:00:12.2]}
34... Ng4+ {[%clk 0:00:25.6]} 35. Kh1 {[%clk 0:00:12.7]} 35... Nxf6 {[%clk
0:00:26.1]} 36. fxg6 {[%clk 0:00:13]} 36... Re6 {[%clk 0:00:23.4]} 37. gxf7
{[%clk 0:00:09.7]} 37... Kxf7 {[%clk 0:00:22.6]} 38. Qf3 {[%clk 0:00:05.4]}
38... Qe5 {[%clk 0:00:19.5]} 39. Rf1 {[%clk 0:00:03.6]} 39... h5 {[%clk
0:00:16.3]} 40. Qb7+ {[%clk 0:00:03.3]} 40... Kg6 {[%clk 0:00:16.5]} 41. Qf3
{[%clk 0:00:03]} 41... b4 {[%clk 0:00:15.5]} 42. Bh3 {[%clk 0:00:03.3]} 42...
Re7 {[%clk 0:00:13.1]} 43. Bf5+ {[%clk 0:00:03.5]} 43... Kf7 {[%clk 0:00:12.9]}
44. Bb1 {[%clk 0:00:03]} 44... Re6 {[%clk 0:00:11.5]} 45. Bf5 {[%clk 0:00:02.2]}
45... Rd6 {[%clk 0:00:11.4]} 46. Qg2 {[%clk 0:00:02.5]} 46... Qd5 {[%clk
0:00:11.5]} 47. Qxd5+ {[%clk 0:00:02.1]} 47... Rxd5 {[%clk 0:00:11.5]} 48. Rf2
{[%clk 0:00:02.5]} 48... c3 {[%clk 0:00:11.3]} 49. bxc3 {[%clk 0:00:02.5]} 49...
bxc3 {[%clk 0:00:12.2]} 50. Bc2 {[%clk 0:00:03.1]} 50... Rd2 {[%clk 0:00:12.5]}
51. Rxd2 {[%clk 0:00:02.3]} 51... cxd2 {[%clk 0:00:13.4]} 52. Kg2 {[%clk
0:00:02.9]} 52... Nd5 {[%clk 0:00:14.1]} 53. Kf3 {[%clk 0:00:02.4]} 53... Nc3
{[%clk 0:00:14.6]} 54. Kf4 {[%clk 0:00:02.5]} 54... Kf6 {[%clk 0:00:14.1]} 55.
h4 {[%clk 0:00:01.8]} 55... d1=Q {[%clk 0:00:14.5]} 56. Bxd1 {[%clk 0:00:02.1]}
56... Nxd1 {[%clk 0:00:15.4]} 57. Kf3 {[%clk 0:00:02.3]} 57... Kf5 {[%clk
0:00:15.7]} 58. Kg3 {[%clk 0:00:02.6]} 58... Ke4 {[%clk 0:00:15.8]} 59. Kg2
{[%clk 0:00:01.6]} 59... Kf4 {[%clk 0:00:16.7]} 60. Kh3 {[%clk 0:00:01.9]} 60...
Ne3 {[%clk 0:00:17.6]} 61. Kh2 {[%clk 0:00:02.2]} 61... Kg4 {[%clk 0:00:18.5]}
62. Kg1 {[%clk 0:00:02.7]} 62... Kxh4 {[%clk 0:00:19.2]} 63. Kh1 {[%clk
0:00:03.6]} 63... Kg3 {[%clk 0:00:19.3]} 64. Kg1 {[%clk 0:00:04.5]} 64... h4
{[%clk 0:00:20.2]} 65. Kh1 {[%clk 0:00:05.4]} 65... h3 {[%clk 0:00:21]} 66. Kg1
{[%clk 0:00:06.3]} 66... Ng4 {[%clk 0:00:21.7]} 67. Kh1 {[%clk 0:00:07.2]} 67...
Nf2+ {[%clk 0:00:21.5]} 68. Kg1 {[%clk 0:00:08.1]} 68... h2+ {[%clk 0:00:22.4]}
69. Kf1 {[%clk 0:00:08.3]} 69... h1=Q+ {[%clk 0:00:23.3]} 70. Ke2 {[%clk
0:00:09.2]} 70... Qd1+ {[%clk 0:00:24.2]} 0-1

[Event "Early-Titled-Tuesday-Blitz-August-29-2023"]
[Site "Chess.com"]
[Date "2023.08.29"]
[Round "1"]
[White "Virgo15"]
[Black "Casper"]
[Result "1-0"]
[WhiteElo "2757"]
[BlackElo "2416"]
[TimeControl "180+1"]
[EndTime "8:08:17 PDT"]
[Termination "Virgo15 won by resignation"]

1. d4 {[%clk 0:03:00.9]} 1... Nf6 {[%clk 0:03:00.2]} 2. Bf4 {[%clk 0:03:00.9]}
2... g6 {[%clk 0:02:59.9]} 3. Nc3 {[%clk 0:03:00.9]} 3... Bg7 {[%clk 0:02:59.3]}
4. e4 {[%clk 0:03:00.7]} 4... O-O {[%clk 0:03:00.2]} 5. e5 {[%clk 0:03:00.3]}
5... Ne8 {[%clk 0:03:00.8]} 6. Qe2 {[%clk 0:02:57.6]} 6... Nc6 {[%clk
0:02:56.4]} 7. O-O-O {[%clk 0:02:57.4]} 7... d6 {[%clk 0:02:54]} 8. h4 {[%clk
0:02:56]} 8... b5 {[%clk 0:02:44]} 9. h5 {[%clk 0:02:50.9]} 9... b4 {[%clk
0:02:43.1]} 10. Ne4 {[%clk 0:02:51.2]} 10... Bf5 {[%clk 0:02:13.6]} 11. Ng3
{[%clk 0:02:47.5]} 11... dxe5 {[%clk 0:02:09.6]} 12. dxe5 {[%clk 0:02:44.1]}
12... Qc8 {[%clk 0:02:09.5]} 13. hxg6 {[%clk 0:02:18.9]} 13... fxg6 {[%clk
0:02:03.2]} 14. Nxf5 {[%clk 0:02:18.7]} 14... Qxf5 {[%clk 0:02:02.3]} 15. Qc4+
{[%clk 0:02:16.4]} 15... Kh8 {[%clk 0:01:57.4]} 16. Nh3 {[%clk 0:02:05.2]} 16...
Nxe5 {[%clk 0:01:50.7]} 17. Qb3 {[%clk 0:02:03.2]} 17... c5 {[%clk 0:01:40.4]}
18. g3 {[%clk 0:01:55.8]} 18... c4 {[%clk 0:01:30.1]} 19. Bxc4 {[%clk 0:01:54]}
19... Nxc4 {[%clk 0:01:16.1]} 20. Qxc4 {[%clk 0:01:54.9]} 20... Rc8 {[%clk
0:01:12.3]} 21. Qb3 {[%clk 0:01:54.9]} 21... a5 {[%clk 0:01:04]} 22. Ng5 {[%clk
0:01:54.9]} 22... h5 {[%clk 0:00:44.6]} 23. Qd3 {[%clk 0:01:48.8]} 23... Qf6
{[%clk 0:00:41.1]} 24. Rxh5+ {[%clk 0:01:48.4]} 24... Kg8 {[%clk 0:00:39.9]} 25.
Qb3+ {[%clk 0:01:48.8]} 25... e6 {[%clk 0:00:39.1]} 26. Rhh1 {[%clk 0:01:40.2]}
26... a4 {[%clk 0:00:20.2]} 27. Qxe6+ {[%clk 0:01:39.6]} 27... Qxe6 {[%clk
0:00:20.5]} 28. Nxe6 {[%clk 0:01:40.5]} 28... b3 {[%clk 0:00:13.6]} 29. axb3
{[%clk 0:01:40.2]} 29... axb3 {[%clk 0:00:14.5]} 30. c3 {[%clk 0:01:40.4]} 30...
Rf7 {[%clk 0:00:13.5]} 31. Nxg7 {[%clk 0:01:40.2]} 31... Nxg7 {[%clk 0:00:14.4]}
32. Rd6 {[%clk 0:00:57.9]} 32... Ra7 {[%clk 0:00:08.5]} 33. Kd2 {[%clk
0:00:54.7]} 33... Ra2 {[%clk 0:00:06.2]} 34. Rb1 {[%clk 0:00:54.9]} 34... Kf7
{[%clk 0:00:04.1]} 35. Rb6 {[%clk 0:00:51.1]} 35... Rd8+ {[%clk 0:00:03.6]} 36.
Ke2 {[%clk 0:00:51.6]} 36... Re8+ {[%clk 0:00:03.9]} 37. Kf3 {[%clk 0:00:51.4]}
37... Ne6 {[%clk 0:00:02.6]} 38. Rxb3 {[%clk 0:00:50.6]} 38... Nxf4 {[%clk
0:00:03.2]} 39. Kxf4 {[%clk 0:00:50.2]} 39... Re2 {[%clk 0:00:03.1]} 40. Kf3
{[%clk 0:00:49.8]} 40... Rd2 {[%clk 0:00:03.2]} 41. Rb6 {[%clk 0:00:49.5]} 41...
Ra5 {[%clk 0:00:02.9]} 42. g4 {[%clk 0:00:48.8]} 42... Re5 {[%clk 0:00:03.4]}
43. Rh1 {[%clk 0:00:47.8]} 43... Ree2 {[%clk 0:00:03.3]} 44. Rh7+ {[%clk
0:00:37.2]} 44... Kg8 {[%clk 0:00:04.2]} 45. Rc7 {[%clk 0:00:38.1]} 45... Rxf2+
{[%clk 0:00:04.7]} 46. Kg3 {[%clk 0:00:38.5]} 46... Rg2+ {[%clk 0:00:04.7]} 47.
Kf4 {[%clk 0:00:39.4]} 47... Rd8 {[%clk 0:00:01.8]} 48. Rbb7 {[%clk 0:00:38]}
48... Rf2+ {[%clk 0:00:02]} 49. Kg5 {[%clk 0:00:38.5]} 49... Kf8 {[%clk
0:00:02.9]} 50. Rh7 {[%clk 0:00:37.6]} 50... Ke8 {[%clk 0:00:02.6]} 51. Rh8+
{[%clk 0:00:37.1]} 51... Rf8 {[%clk 0:00:03.5]} 52. Rxf8+ {[%clk 0:00:37.6]}
52... Kxf8 {[%clk 0:00:04.3]} 53. Kxg6 {[%clk 0:00:38.1]} 53... Rd2 {[%clk
0:00:04.9]} 54. g5 {[%clk 0:00:38]} 54... Rd6+ {[%clk 0:00:05.5]} 55. Kh5 {[%clk
0:00:38]} 55... Rd2 {[%clk 0:00:05.4]} 56. Kh6 {[%clk 0:00:37.7]} 56... Rh2+
{[%clk 0:00:06.3]} 57. Kg6 {[%clk 0:00:38.1]} 57... Rg2 {[%clk 0:00:07.2]} 58.
Rb8+ {[%clk 0:00:38.1]} 58... Ke7 {[%clk 0:00:07.9]} 59. b4 {[%clk 0:00:37.4]}
59... Rg1 {[%clk 0:00:07.4]} 60. b5 {[%clk 0:00:37.5]} 60... Rg2 {[%clk
0:00:08.3]} 61. b6 {[%clk 0:00:37.7]} 61... Rg1 {[%clk 0:00:09.2]} 62. b7 {[%clk
0:00:38.1]} 1-0

[Event "Early-Titled-Tuesday-Blitz-August-29-2023"]
[Site "Chess.com"]
[Date "2023.08.29"]
[Round "1"]
[White "maciek_92"]
[Black "salzikis"]
[Result "1/2-1/2"]
[WhiteElo "2714"]
[BlackElo "2412"]
[TimeControl "180+1"]
[EndTime "8:08:20 PDT"]
[Termination "Game drawn by repetition"]

1. c4 {[%clk 0:03:00.9]} 1... e5 {[%clk 0:02:59.2]} 2. Nc3 {[%clk 0:03:01.5]}
2... Nf6 {[%clk 0:02:59.5]} 3. g3 {[%clk 0:03:02.2]} 3... Bb4 {[%clk 0:02:58.1]}
4. Bg2 {[%clk 0:03:02.7]} 4... O-O {[%clk 0:02:57.6]} 5. e4 {[%clk 0:03:02.9]}
5... d6 {[%clk 0:02:54.6]} 6. Nge2 {[%clk 0:03:02.9]} 6... c5 {[%clk 0:02:52.3]}
7. O-O {[%clk 0:03:03.3]} 7... Nc6 {[%clk 0:02:52.1]} 8. d3 {[%clk 0:03:02.5]}
8... Bg4 {[%clk 0:02:51]} 9. f3 {[%clk 0:03:02]} 9... Be6 {[%clk 0:02:51]} 10.
f4 {[%clk 0:03:01.7]} 10... Bg4 {[%clk 0:02:50.7]} 11. h3 {[%clk 0:03:01.9]}
11... Bxe2 {[%clk 0:02:48.6]} 12. Nxe2 {[%clk 0:03:02]} 12... Ne8 {[%clk
0:02:41.7]} 13. g4 {[%clk 0:02:59.6]} 13... exf4 {[%clk 0:02:40.8]} 14. Bxf4
{[%clk 0:02:56.4]} 14... Ne5 {[%clk 0:02:39.4]} 15. Be3 {[%clk 0:02:30.2]} 15...
Qe7 {[%clk 0:02:36.3]} 16. Nf4 {[%clk 0:02:30.7]} 16... Nc7 {[%clk 0:02:36.3]}
17. Qe2 {[%clk 0:02:30.3]} 17... Ba5 {[%clk 0:02:33]} 18. Rf2 {[%clk 0:02:29.9]}
18... Ng6 {[%clk 0:02:26.6]} 19. Nd5 {[%clk 0:02:29]} 19... Nxd5 {[%clk
0:02:26.3]} 20. cxd5 {[%clk 0:02:26.8]} 20... b5 {[%clk 0:02:20.5]} 21. Raf1
{[%clk 0:02:18.5]} 21... Bb6 {[%clk 0:02:15.7]} 22. Rf5 {[%clk 0:02:16.5]} 22...
f6 {[%clk 0:02:06]} 23. Kh1 {[%clk 0:01:52.8]} 23... Rae8 {[%clk 0:01:57.7]} 24.
Bf2 {[%clk 0:01:52.8]} 24... Qd7 {[%clk 0:01:52]} 25. b3 {[%clk 0:01:47.9]}
25... Ne7 {[%clk 0:01:51.8]} 26. Rf3 {[%clk 0:01:45.9]} 26... Nxd5 {[%clk
0:01:51.3]} 27. Bg3 {[%clk 0:01:36.7]} 27... Ne7 {[%clk 0:01:49.4]} 28. Qd2
{[%clk 0:01:21.2]} 28... Ng6 {[%clk 0:01:45.1]} 29. Rf5 {[%clk 0:01:18.1]} 29...
Ne7 {[%clk 0:01:44.3]} 30. R5f3 {[%clk 0:01:16.6]} 30... Ng6 {[%clk 0:01:44.3]}
31. Rf5 {[%clk 0:01:15.7]} 31... a6 {[%clk 0:01:41.6]} 32. h4 {[%clk 0:01:13.5]}
32... Ne5 {[%clk 0:01:41]} 33. Bh3 {[%clk 0:01:11.8]} 33... Qc6 {[%clk
0:01:40.5]} 34. Kh2 {[%clk 0:01:08.9]} 34... d5 {[%clk 0:01:36.4]} 35. g5 {[%clk
0:01:02.5]} 35... dxe4 {[%clk 0:01:30.8]} 36. dxe4 {[%clk 0:00:54.7]} 36... Ng6
{[%clk 0:01:13.8]} 37. gxf6 {[%clk 0:00:47.2]} 37... Rxf6 {[%clk 0:01:11]} 38.
h5 {[%clk 0:00:46.6]} 38... Rxf5 {[%clk 0:01:08.5]} 39. exf5 {[%clk 0:00:44.3]}
39... Ne5 {[%clk 0:01:06.2]} 40. Bg2 {[%clk 0:00:26.9]} 40... Qf6 {[%clk
0:01:04.2]} 41. Re1 {[%clk 0:00:18]} 41... Bc7 {[%clk 0:01:02.3]} 42. Kh1 {[%clk
0:00:14.2]} 42... Qd6 {[%clk 0:00:48.9]} 43. Qg5 {[%clk 0:00:07.6]} 43... h6
{[%clk 0:00:47]} 44. Qc1 {[%clk 0:00:03.7]} 44... Kh8 {[%clk 0:00:43.8]} 45. Qc2
{[%clk 0:00:03.9]} 45... c4 {[%clk 0:00:42.9]} 46. bxc4 {[%clk 0:00:04]} 46...
bxc4 {[%clk 0:00:43]} 47. Qe4 {[%clk 0:00:03.6]} 47... Qf6 {[%clk 0:00:37.5]}
48. Rf1 {[%clk 0:00:04.1]} 48... Re7 {[%clk 0:00:36.5]} 49. Bh4 {[%clk
0:00:04.5]} 49... Qd6 {[%clk 0:00:30.8]} 50. f6 {[%clk 0:00:04.6]} 50... Rf7
{[%clk 0:00:26.9]} 51. fxg7+ {[%clk 0:00:04.5]} 51... Kg8 {[%clk 0:00:27.3]} 52.
Rxf7 {[%clk 0:00:03.7]} 52... Nxf7 {[%clk 0:00:26.7]} 53. Qa8+ {[%clk
0:00:02.4]} 53... Kxg7 {[%clk 0:00:26.1]} 54. Kg1 {[%clk 0:00:02.4]} 54... Qh2+
{[%clk 0:00:24.2]} 55. Kf1 {[%clk 0:00:03]} 55... Qf4+ {[%clk 0:00:24.4]} 56.
Bf2 {[%clk 0:00:01.5]} 56... Bb6 {[%clk 0:00:24.1]} 57. Bf3 {[%clk 0:00:01.5]}
57... Bxf2 {[%clk 0:00:21.9]} 58. Kxf2 {[%clk 0:00:02.4]} 58... Ne5 {[%clk
0:00:20.9]} 59. Qa7+ {[%clk 0:00:02.5]} 59... Kf6 {[%clk 0:00:21]} 60. Qb6+
{[%clk 0:00:02.5]} 60... Kg5 {[%clk 0:00:21.7]} 61. Qd8+ {[%clk 0:00:02.3]}
61... Kf5 {[%clk 0:00:20.7]} 62. Qf8+ {[%clk 0:00:02.6]} 62... Kg5 {[%clk
0:00:20.9]} 63. Qg7+ {[%clk 0:00:02.9]} 63... Kf5 {[%clk 0:00:20.8]} 64. Qf8+
{[%clk 0:00:02.8]} 64... Kg5 {[%clk 0:00:16.1]} 65. Qe7+ {[%clk 0:00:02.8]}
65... Kf5 {[%clk 0:00:15.1]} 66. Qf8+ {[%clk 0:00:02.2]} 1/2-1/2

[Event "Early-Titled-Tuesday-Blitz-August-29-2023"]
[Site "Chess.com"]
[Date "2023.08.29"]
[Round "1"]
[White "a-z30"]
[Black "Kildepiotr"]
[Result "1-0"]
[WhiteElo "2358"]
[BlackElo "2644"]
[TimeControl "180+1"]
[EndTime "8:08:20 PDT"]
[Termination "a-z30 won by resignation"]

1. d3 {[%clk 0:03:00.9]} 1... g6 {[%clk 0:02:55.4]} 2. Nf3 {[%clk 0:03:01]} 2...
Bg7 {[%clk 0:02:56.3]} 3. g3 {[%clk 0:03:01.4]} 3... d5 {[%clk 0:02:56.4]} 4.
Bg2 {[%clk 0:03:02.1]} 4... Nf6 {[%clk 0:02:57]} 5. O-O {[%clk 0:03:02.4]} 5...
O-O {[%clk 0:02:57.6]} 6. c4 {[%clk 0:03:03]} 6... dxc4 {[%clk 0:02:57.5]} 7.
dxc4 {[%clk 0:03:02.8]} 7... Nbd7 {[%clk 0:02:58.2]} 8. Nc3 {[%clk 0:03:02.3]}
8... e5 {[%clk 0:02:58.4]} 9. b3 {[%clk 0:02:59.6]} 9... Qe7 {[%clk 0:02:57.2]}
10. Nb5 {[%clk 0:02:54.4]} 10... Nc5 {[%clk 0:02:55.9]} 11. Ba3 {[%clk
0:02:43.7]} 11... Bg4 {[%clk 0:02:53.5]} 12. Qe1 {[%clk 0:02:30.1]} 12... c6
{[%clk 0:02:37.3]} 13. Nc3 {[%clk 0:02:00.8]} 13... e4 {[%clk 0:02:21.7]} 14.
Na4 {[%clk 0:01:47.8]} 14... Nfd7 {[%clk 0:02:16.8]} 15. Nd2 {[%clk 0:00:46.4]}
15... Bxa1 {[%clk 0:02:15.3]} 16. Qxa1 {[%clk 0:00:44.2]} 16... Bxe2 {[%clk
0:02:10.8]} 17. Re1 {[%clk 0:00:43.6]} 17... Bd3 {[%clk 0:02:10.9]} 18. Bxe4
{[%clk 0:00:38.4]} 18... Qg5 {[%clk 0:01:45.1]} 19. f4 {[%clk 0:00:37.8]} 19...
Qh5 {[%clk 0:01:30.8]} 20. Nxc5 {[%clk 0:00:29.6]} 20... Nxc5 {[%clk 0:01:30]}
21. Bf3 {[%clk 0:00:25.6]} 21... Qf5 {[%clk 0:01:26.1]} 22. Re5 {[%clk
0:00:25.1]} 22... Qf6 {[%clk 0:01:17.8]} 23. Bxc5 {[%clk 0:00:24.9]} 23... Rfd8
{[%clk 0:01:17.9]} 24. Bd4 {[%clk 0:00:22.8]} 24... Qd6 {[%clk 0:01:09.9]} 25.
Bc3 {[%clk 0:00:21.7]} 25... Re8 {[%clk 0:01:04.4]} 26. Ne4 {[%clk 0:00:18.5]}
26... Bxe4 {[%clk 0:01:03.1]} 27. Bxe4 {[%clk 0:00:19.4]} 27... Rad8 {[%clk
0:01:00.3]} 28. Kf2 {[%clk 0:00:15.7]} 28... f6 {[%clk 0:00:56.4]} 29. Rxe8+
{[%clk 0:00:14.3]} 29... Rxe8 {[%clk 0:00:57.3]} 30. Bf3 {[%clk 0:00:13.2]}
30... Kf7 {[%clk 0:00:51.1]} 31. Qb2 {[%clk 0:00:13.3]} 31... Qc5+ {[%clk
0:00:35.9]} 32. Bd4 {[%clk 0:00:13]} 32... Qa5 {[%clk 0:00:36.3]} 33. Qc2 {[%clk
0:00:12.5]} 33... Qe1+ {[%clk 0:00:35.2]} 34. Kg2 {[%clk 0:00:12.5]} 34... Rd8
{[%clk 0:00:33]} 35. Qc3 {[%clk 0:00:11.9]} 35... Qe6 {[%clk 0:00:26.6]} 36. Kf2
{[%clk 0:00:09.2]} 36... b6 {[%clk 0:00:22.3]} 37. Be3 {[%clk 0:00:08.7]} 37...
Kg7 {[%clk 0:00:18]} 38. h4 {[%clk 0:00:08.9]} 38... Qf5 {[%clk 0:00:17.6]} 39.
g4 {[%clk 0:00:07.4]} 39... Qb1 {[%clk 0:00:17]} 40. g5 {[%clk 0:00:06.7]} 40...
Qf5 {[%clk 0:00:15.7]} 41. Qxf6+ {[%clk 0:00:05]} 41... Qxf6 {[%clk 0:00:15.9]}
42. gxf6+ {[%clk 0:00:05.9]} 42... Kxf6 {[%clk 0:00:16.7]} 43. Be4 {[%clk
0:00:04.7]} 43... c5 {[%clk 0:00:15.8]} 44. Bd5 {[%clk 0:00:04.4]} 44... Re8
{[%clk 0:00:15.7]} 45. Kf3 {[%clk 0:00:05.1]} 45... Kf5 {[%clk 0:00:15.3]} 46.
Bf2 {[%clk 0:00:05.4]} 46... h5 {[%clk 0:00:14.2]} 47. Be3 {[%clk 0:00:06.3]}
47... Re7 {[%clk 0:00:14.1]} 48. Bc6 {[%clk 0:00:06.5]} 48... Rc7 {[%clk
0:00:12]} 49. Bd5 {[%clk 0:00:07.4]} 49... Rd7 {[%clk 0:00:12]} 50. Be4+ {[%clk
0:00:07.3]} 50... Kf6 {[%clk 0:00:12.1]} 51. Bd5 {[%clk 0:00:08]} 51... Kf5
{[%clk 0:00:09.6]} 52. Bd2 {[%clk 0:00:08.4]} 52... Re7 {[%clk 0:00:07.4]} 53.
Bc3 {[%clk 0:00:08.6]} 53... Re8 {[%clk 0:00:06.8]} 54. Be5 {[%clk 0:00:07.6]}
54... Re7 {[%clk 0:00:06.7]} 55. Be4+ {[%clk 0:00:08]} 55... Ke6 {[%clk
0:00:06.1]} 56. Bxg6 {[%clk 0:00:08.7]} 56... Rd7 {[%clk 0:00:06.3]} 57. Be4
{[%clk 0:00:09.5]} 57... Rd2 {[%clk 0:00:06]} 58. Bd5+ {[%clk 0:00:08.4]} 58...
Kf5 {[%clk 0:00:05.8]} 59. Be4+ {[%clk 0:00:09.3]} 59... Ke6 {[%clk 0:00:06]}
60. Bc3 {[%clk 0:00:08.3]} 60... Rxa2 {[%clk 0:00:05.6]} 61. f5+ {[%clk
0:00:09.2]} 61... Kf7 {[%clk 0:00:05.9]} 62. Bd5+ {[%clk 0:00:08.8]} 62... Ke7
{[%clk 0:00:06.6]} 63. f6+ {[%clk 0:00:09]} 63... Kf8 {[%clk 0:00:06.1]} 64. f7
{[%clk 0:00:09.3]} 64... Rc2 {[%clk 0:00:05.8]} 65. Be5 {[%clk 0:00:08.4]} 1-0